Workbook

Sheet Sheet1
R4: 3. กดปุ่มวิเคราะห์ข้อมูล
L5: ทองจุล ขันขาว
L6: http://www.thongjoon.com
B8: จำนวนแบบทดสอบ | D8: 8 | E8: ฉบับ | G8: ลักษณะตัวเลือก | J8: ก | K8: ข | L8: ค | M8: ง | N8: จ | Q8: ข้อสอบแต่ละฉบับ มีจำนวน | V8: 5 | W8: ข้อ | GU8: (จำนวนข้อสูงสุด ไม่เกิน 200 ข้อ นะครับ)
B9: 1. กำหนดข้อที่ถูกของทุกข้อคำถาม
B10: ข้อ | C10: 1 | D10: 2 | E10: 3 | F10: 4 | G10: 5 | H10: 6 | I10: 7 | J10: 8 | K10: 9 | L10: 10 | M10: 11 | N10: 12 | O10: 13 | P10: 14 | Q10: 15 | R10: 16 | S10: 17 | T10: 18 | U10: 19 | V10: 20 | W10: 21 | X10: 22 | Y10: 23 | Z10: 24 | AA10: 25 | AB10: 26 | AC10: 27 | AD10: 28 | AE10: 29 | AF10: 30 | AG10: 31 | AH10: 32 | AI10: 33 | AJ10: 34 | AK10: 35 | AL10: 36 | AM10: 37 | AN10: 38 | AO10: 39 | AP10: 40 | AQ10: 41 | AR10: 42 | AS10: 43 | AT10: 44 | AU10: 45 | AV10: 46 | AW10: 47 | AX10: 48 | AY10: 49 | AZ10: 50 | BA10: 51 | BB10: 52 | BC10: 53 | BD10: 54 | BE10: 55 | BF10: 56 | BG10: 57 | BH10: 58 | BI10: 59 | BJ10: 60 | BK10: 61 | BL10: 62 | BM10: 63 | BN10: 64 | BO10: 65 | BP10: 66 | BQ10: 67 | BR10: 68 | BS10: 69 | BT10: 70 | BU10: 71 | BV10: 72 | BW10: 73 | BX10: 74 | BY10: 75 | BZ10: 76 | CA10: 77 | CB10: 78 | CC10: 79 | CD10: 80 | CE10: 81 | CF10: 82 | CG10: 83 | CH10: 84 | CI10: 85 | CJ10: 86 | CK10: 87 | CL10: 88 | CM10: 89 | CN10: 90 | CO10: 91 | CP10: 92 | CQ10: 93 | CR10: 94 | CS10: 95 | CT10: 96 | CU10: 97 | CV10: 98 | CW10: 99 | CX10: 100
B11: คำตอบที่ถูก | C11: ค | D11: ง | E11: ก | F11: ข | G11: ง
B13: 2. กรอกคำตอบของผู้ทำแบบทดสอบ แต่ละคน (สูงสุด ไม่เกิน 2,000 คน)
B14: ฉบับ\ข้อ | C14: 1 | D14: 2 | E14: 3 | F14: 4 | G14: 5 | H14: 6 | I14: 7 | J14: 8 | K14: 9 | L14: 10 | M14: 11 | N14: 12 | O14: 13 | P14: 14 | Q14: 15 | R14: 16 | S14: 17 | T14: 18 | U14: 19 | V14: 20 | W14: 21 | X14: 22 | Y14: 23 | Z14: 24 | AA14: 25 | AB14: 26 | AC14: 27 | AD14: 28 | AE14: 29 | AF14: 30 | AG14: 31 | AH14: 32 | AI14: 33 | AJ14: 34 | AK14: 35 | AL14: 36 | AM14: 37 | AN14: 38 | AO14: 39 | AP14: 40 | AQ14: 41 | AR14: 42 | AS14: 43 | AT14: 44 | AU14: 45 | AV14: 46 | AW14: 47 | AX14: 48 | AY14: 49 | AZ14: 50 | BA14: 51 | BB14: 52 | BC14: 53 | BD14: 54 | BE14: 55 | BF14: 56 | BG14: 57 | BH14: 58 | BI14: 59 | BJ14: 60 | BK14: 61 | BL14: 62 | BM14: 63 | BN14: 64 | BO14: 65 | BP14: 66 | BQ14: 67 | BR14: 68 | BS14: 69 | BT14: 70 | BU14: 71 | BV14: 72 | BW14: 73 | BX14: 74 | BY14: 75 | BZ14: 76 | CA14: 77 | CB14: 78 | CC14: 79 | CD14: 80 | CE14: 81 | CF14: 82 | CG14: 83 | CH14: 84 | CI14: 85 | CJ14: 86 | CK14: 87 | CL14: 88 | CM14: 89 | CN14: 90 | CO14: 91 | CP14: 92 | CQ14: 93 | CR14: 94 | CS14: 95 | CT14: 96 | CU14: 97 | CV14: 98 | CW14: 99 | CX14: 100
B15: 1 | C15: ค | D15: ข | E15: ก | F15: ง | G15: ค
B16: 2 | C16: ค | D16: ข | E16: ค | F16: ข | G16: ข
B17: 3 | C17: ค | D17: ง | E17: ข | F17: ข | G17: ง
B18: 4 | C18: ค | D18: ข | E18: ข | F18: ค | G18: ก
B19: 5 | C19: ค | D19: ค | E19: ง | F19: ข | G19: ก
B20: 6 | C20: ก | D20: ข | E20: ก | F20: ก | G20: ข
B21: 7 | C21: ค | D21: ข | E21: ข | F21: ข | G21: ง
B22: 8 | C22: ง | D22: จ | E22: ก | F22: ง | G22: ง
A2015: เลยบรรทัดนี้ไป เป็นข้อสอบฉบับที่ 2001 แล้วครับ ผมเตรียมวิเคราะห์ไว้แค่ 2000 ฉบับ นะครับ -- ถ้าต้องการมากกว่านี้ ติดต่อ thongjoon@yahoo.com.sg หรือ thongjoon@gmail.com

Sheet Sheet2
G2: ผลการวิเคราะห์ข้อสอบของท่าน
B4: จำนวนข้อสอบ (N) = 8
B6: คำถามข้อที่ | C6: 1 | D6: 2 | E6: 3 | F6: 4 | G6: 5
B7: ตอบถูก | C7: 6 | D7: 1 | E7: 3 | F7: 4 | G7: 3
B8: ตอบผิด | C8: 2 | D8: 7 | E8: 5 | F8: 4 | G8: 5
B9: pi | C9: 0.75 | D9: 0.125 | E9: 0.375 | F9: 0.5 | G9: 0.375
B10: qi | C10: 0.25 | D10: 0.875 | E10: 0.625 | F10: 0.5 | G10: 0.625
B11: piqi | C11: 0.1875 | D11: 0.109375 | E11: 0.234375 | F11: 0.25 | G11: 0.234375
B13: ร้อยละการเลือกตัวเลือกแต่ละข้อ
B14: ข้อ | C14: 1 | D14: 2 | E14: 3 | F14: 4 | G14: 5
B15: ข้อ ก | C15: 12.5 | D15: 0 | E15: 37.5 | F15: 12.5 | G15: 25
B16: ข้อ ข | C16: 0 | D16: 62.5 | E16: 37.5 | F16: 50 | G16: 25
B17: ข้อ ค | C17: 75 | D17: 12.5 | E17: 12.5 | F17: 12.5 | G17: 12.5
B18: ข้อ ง | C18: 12.5 | D18: 12.5 | E18: 12.5 | F18: 25 | G18: 37.5
B19: ข้อ จ | C19: 0 | D19: 12.5 | E19: 0 | F19: 0 | G19: 0
B20: รวม | C20: 100 | D20: 100 | E20: 100 | F20: 100 | G20: 100
B22: IF total (รวม) | C22: 0.75 | D22: 0.125 | E22: 0.375 | F22: 0.5 | G22: 0.375
B23: IF Upper (กลุ่มสูง) | C23: 1 | D23: 0.25 | E23: 0.25 | F23: 0.75 | G23: 0.5
B24: IF Lower (กลุ่มต่ำ) | C24: 0.5 | D24: 0 | E24: 0.5 | F24: 0.25 | G24: 0.25
B25: ID (อำนาจจำแนก) | C25: 0.5 | D25: 0.25 | E25: -0.25 | F25: 0.5 | G25: 0.25
B27: Reliability(KR-20) | C27: -0.23
B28: คะแนนเฉลี่ย | C28: 2.13
B29: S.D. | C29: 0.93
B30: SEM | C30: 1.03
B32: ความยาก-ง่าย (IF total) | C32: ดีพอใช้ | D32: ยากมาก-ตัดทิ้ง | E32: ดีพอใช้ | F32: ดีมาก | G32: ดีพอใช้
B33: อำนาจจำแนก (ID) | C33: ดี | D33: พอใช้ได้ | E33: ตัดทิ้ง | F33: ดี | G33: พอใช้ได้

Sheet Sheet3
B3: ข้อ | C3: 1 | D3: 2 | E3: 3 | F3: 4 | G3: 5
B4: คำตอบที่ถูก | C4: ค | D4: ง | E4: ก | F4: ข | G4: ง
B6: 2. กรอกคำตอบของผู้ทำแบบทดสอบ แต่ละคน (สูงสุด ไม่เกิน 2,000 คน)
B7: ฉบับ\ข้อ | C7: 1 | D7: 2 | E7: 3 | F7: 4 | G7: 5
B8: 1 | C8: ค | D8: ข | E8: ก | F8: ง | G8: ค
B9: 2 | C9: ค | D9: ข | E9: ค | F9: ข | G9: ข
B10: 3 | C10: ค | D10: ง | E10: ข | F10: ข | G10: ง
B11: 4 | C11: ค | D11: ข | E11: ข | F11: ค | G11: ก
B12: 5 | C12: ค | D12: ค | E12: ง | F12: ข | G12: ก
B13: 6 | C13: ก | D13: ข | E13: ก | F13: ก | G13: ข
B14: 7 | C14: ค | D14: ข | E14: ข | F14: ข | G14: ง
B15: 8 | C15: ง | D15: จ | E15: ก | F15: ง | G15: ง
B17: ผลการตรวจและเรียงคะแนนจากมากไปหาน้อย
B18: ฉบับที่\ข้อที่ | C18: 1 | D18: 2 | E18: 3 | F18: 4 | G18: 5 | H18: X | I18: X2
B19: 3 | C19: 1 | D19: 1 | E19: 0 | F19: 1 | G19: 1 | H19: 4 | I19: =H19^2 -> 16
B20: 7 | C20: 1 | D20: 0 | E20: 0 | F20: 1 | G20: 1 | H20: 3 | I20: =H20^2 -> 9
B21: 1 | C21: 1 | D21: 0 | E21: 1 | F21: 0 | G21: 0 | H21: 2 | I21: 4
B22: 2 | C22: 1 | D22: 0 | E22: 0 | F22: 1 | G22: 0 | H22: 2 | I22: 4
B23: 5 | C23: 1 | D23: 0 | E23: 0 | F23: 1 | G23: 0 | H23: 2 | I23: 4
B24: 8 | C24: 0 | D24: 0 | E24: 1 | F24: 0 | G24: 1 | H24: 2 | I24: 4
B25: 4 | C25: 1 | D25: 0 | E25: 0 | F25: 0 | G25: 0 | H25: 1 | I25: 1
B26: 6 | C26: 0 | D26: 0 | E26: 1 | F26: 0 | G26: 0 | H26: 1 | I26: 1
H27: =SUM(H19:H26) -> 17 | I27: =SUM(I19:I26) -> 43
B28: คำถามข้อที่ | C28: 1 | D28: 2 | E28: 3 | F28: 4 | G28: 5
B29: ตอบถูก | C29: =COUNTIF(C19:C26,1) -> 6 | D29: =COUNTIF(D19:D26,1) -> 1 | E29: =COUNTIF(E19:E26,1) -> 3 | F29: =COUNTIF(F19:F26,1) -> 4 | G29: =COUNTIF(G19:G26,1) -> 3
B30: ตอบผิด | C30: =COUNTIF(C19:C26,0) -> 2 | D30: =COUNTIF(D19:D26,0) -> 7 | E30: =COUNTIF(E19:E26,0) -> 5 | F30: =COUNTIF(F19:F26,0) -> 4 | G30: =COUNTIF(G19:G26,0) -> 5
B31: pi | C31: =29:29/8 -> 0.75 | D31: =29:29/8 -> 0.125 | E31: =29:29/8 -> 0.375 | F31: =29:29/8 -> 0.5 | G31: =29:29/8 -> 0.375
B32: qi | C32: =30:30/8 -> 0.25 | D32: =30:30/8 -> 0.875 | E32: =30:30/8 -> 0.625 | F32: =30:30/8 -> 0.5 | G32: =30:30/8 -> 0.625
B33: piqi | C33: =C31 * C32 -> 0.1875 | D33: =D31 * D32 -> 0.109375 | E33: =E31 * E32 -> 0.234375 | F33: =F31 * F32 -> 0.25 | G33: =G31 * G32 -> 0.234375 | I33: =SUM(C33:G33) -> 1.015625
B35: ร้อยละการเลือกตัวเลือกแต่ละข้อ
B36: ข้อ | C36: 1 | D36: 2 | E36: 3 | F36: 4 | G36: 5
B37: ข้อ ก | C37: =COUNTIF(C8:C15,"ก") / 8 * 100 -> 12.5 | D37: =COUNTIF(D8:D15,"ก") / 8 * 100 -> 0 | E37: =COUNTIF(E8:E15,"ก") / 8 * 100 -> 37.5 | F37: =COUNTIF(F8:F15,"ก") / 8 * 100 -> 12.5 | G37: =COUNTIF(G8:G15,"ก") / 8 * 100 -> 25
B38: ข้อ ข | C38: =COUNTIF(C8:C15,"ข") / 8 * 100 -> 0 | D38: =COUNTIF(D8:D15,"ข") / 8 * 100 -> 62.5 | E38: =COUNTIF(E8:E15,"ข") / 8 * 100 -> 37.5 | F38: =COUNTIF(F8:F15,"ข") / 8 * 100 -> 50 | G38: =COUNTIF(G8:G15,"ข") / 8 * 100 -> 25
B39: ข้อ ค | C39: =COUNTIF(C8:C15,"ค") / 8 * 100 -> 75 | D39: =COUNTIF(D8:D15,"ค") / 8 * 100 -> 12.5 | E39: =COUNTIF(E8:E15,"ค") / 8 * 100 -> 12.5 | F39: =COUNTIF(F8:F15,"ค") / 8 * 100 -> 12.5 | G39: =COUNTIF(G8:G15,"ค") / 8 * 100 -> 12.5
B40: ข้อ ง | C40: =COUNTIF(C8:C15,"ง") / 8 * 100 -> 12.5 | D40: =COUNTIF(D8:D15,"ง") / 8 * 100 -> 12.5 | E40: =COUNTIF(E8:E15,"ง") / 8 * 100 -> 12.5 | F40: =COUNTIF(F8:F15,"ง") / 8 * 100 -> 25 | G40: =COUNTIF(G8:G15,"ง") / 8 * 100 -> 37.5
B41: ข้อ จ | C41: =COUNTIF(C8:C15,"จ") / 8 * 100 -> 0 | D41: =COUNTIF(D8:D15,"จ") / 8 * 100 -> 12.5 | E41: =COUNTIF(E8:E15,"จ") / 8 * 100 -> 0 | F41: =COUNTIF(F8:F15,"จ") / 8 * 100 -> 0 | G41: =COUNTIF(G8:G15,"จ") / 8 * 100 -> 0
B42: รวม | C42: =SUM(C37:C41) -> 100 | D42: =SUM(D37:D41) -> 100 | E42: =SUM(E37:E41) -> 100 | F42: =SUM(F37:F41) -> 100 | G42: =SUM(G37:G41) -> 100
B44: IF total (รวม) | C44: =SUM(C19:C26)/8 -> 0.75 | D44: =SUM(D19:D26)/8 -> 0.125 | E44: =SUM(E19:E26)/8 -> 0.375 | F44: =SUM(F19:F26)/8 -> 0.5 | G44: =SUM(G19:G26)/8 -> 0.375
B45: IF Upper (กลุ่มสูง) | C45: =SUM(C19:C22)/4 -> 1 | D45: =SUM(D19:D22)/4 -> 0.25 | E45: =SUM(E19:E22)/4 -> 0.25 | F45: =SUM(F19:F22)/4 -> 0.75 | G45: =SUM(G19:G22)/4 -> 0.5
B46: IF Lower (กลุ่มต่ำ) | C46: =SUM(C23:C26)/4 -> 0.5 | D46: =SUM(D23:D26)/4 -> 0 | E46: =SUM(E23:E26)/4 -> 0.5 | F46: =SUM(F23:F26)/4 -> 0.25 | G46: =SUM(G23:G26)/4 -> 0.25
B47: ID (อำนาจจำแนก) | C47: =C45-C46 -> 0.5 | D47: =D45-D46 -> 0.25 | E47: =E45-E46 -> -0.25 | F47: =F45-F46 -> 0.5 | G47: =G45-G46 -> 0.25
B49: Reliability(KR-20) | C49: -0.23
B50: คะแนนเฉลี่ย | C50: 2.13
B51: S.D. | C51: 0.93
B52: SEM | C52: 1.03
B54: ความยาก-ง่าย (IF total) | C54: =IF(C44 > 0.8,"ง่ายมาก-ตัดทิ้ง",IF(C44 > 0.6,"ดีพอใช้",IF(C44 >0.4,"ดีมาก",IF(C44 >0.19,"ดีพอใช้","ยากมาก-ตัดทิ้ง")))) -> ดีพอใช้ | D54: =IF(D44 > 0.8,"ง่ายมาก-ตัดทิ้ง",IF(D44 > 0.6,"ดีพอใช้",IF(D44 >0.4,"ดีมาก",IF(D44 >0.19,"ดีพอใช้","ยากมาก-ตัดทิ้ง")))) -> ยากมาก-ตัดทิ้ง | E54: =IF(E44 > 0.8,"ง่ายมาก-ตัดทิ้ง",IF(E44 > 0.6,"ดีพอใช้",IF(E44 >0.4,"ดีมาก",IF(E44 >0.19,"ดีพอใช้","ยากมาก-ตัดทิ้ง")))) -> ดีพอใช้ | F54: =IF(F44 > 0.8,"ง่ายมาก-ตัดทิ้ง",IF(F44 > 0.6,"ดีพอใช้",IF(F44 >0.4,"ดีมาก",IF(F44 >0.19,"ดีพอใช้","ยากมาก-ตัดทิ้ง")))) -> ดีมาก | G54: =IF(G44 > 0.8,"ง่ายมาก-ตัดทิ้ง",IF(G44 > 0.6,"ดีพอใช้",IF(G44 >0.4,"ดีมาก",IF(G44 >0.19,"ดีพอใช้","ยากมาก-ตัดทิ้ง")))) -> ดีพอใช้
B55: อำนาจจำแนก (ID) | C55: =IF(C47 >= 0.6,"ดีมาก",IF(C47 > 0.4,"ดี",IF(C47 >0.2,"พอใช้ได้",IF(C47 >0,"ค่อนข้างต่ำ","ตัดทิ้ง")))) -> ดี | D55: =IF(D47 >= 0.6,"ดีมาก",IF(D47 > 0.4,"ดี",IF(D47 >0.2,"พอใช้ได้",IF(D47 >0,"ค่อนข้างต่ำ","ตัดทิ้ง")))) -> พอใช้ได้ | E55: =IF(E47 >= 0.6,"ดีมาก",IF(E47 > 0.4,"ดี",IF(E47 >0.2,"พอใช้ได้",IF(E47 >0,"ค่อนข้างต่ำ","ตัดทิ้ง")))) -> ตัดทิ้ง | F55: =IF(F47 >= 0.6,"ดีมาก",IF(F47 > 0.4,"ดี",IF(F47 >0.2,"พอใช้ได้",IF(F47 >0,"ค่อนข้างต่ำ","ตัดทิ้ง")))) -> ดี | G55: =IF(G47 >= 0.6,"ดีมาก",IF(G47 > 0.4,"ดี",IF(G47 >0.2,"พอใช้ได้",IF(G47 >0,"ค่อนข้างต่ำ","ตัดทิ้ง")))) -> พอใช้ได้
